Cogmind - Beta 13 @@@ ROGUE MODE // 2024.04.22 @ 21:36:20 Player: SYPIAC Result: Destroyed by G-50 Soldier with Heavy Laser Performance ------------- Evolutions (4) 2000 Regions Visited (10) 2000 Robots Destroyed (229) 1145 Value Destroyed (9211) 9211 Prototype IDs (21) 420 Alien Tech Used (0) 0 Bonus (3868) 3868 TOTAL SCORE: 18644 Bonus ------- High Alert Combat Kills 2263 Follower Combat Kills 864 Entered Garrisons 200 Met Data Miner 300 Acquired ECA 300 Friendly Fire -59 Cogmind --------- Core Integrity 0/850 Matter 300/300 Energy 73/100 System Corruption 10% Temperature Cool (23) Movement Hovering (80) Location -6/Factory Parts ------- > --- POWER (2) -------- (None) > --- PROPULSION (4) --- Combat Airjet > --- UTILITY (7) ------ Advanced Heat Sink Medium Storage Unit Advanced Visual Processing Unit Targeting Computer Improved Target Analyzer Improved Hacking Suite System Shield > --- WEAPON (2) ------- (None) > --- INVENTORY (10) --- Cooled Particle Cannon Heavy Plasma Cannon Heavy Plasma Cannon Improved Grenade Launcher Peak State ------------ > --- POWER ------------ Light Nuclear Core Light Fission Core > --- PROPULSION ------- Medium Treads Carbon-fiber Leg Armored Huge Wheel > --- UTILITY ---------- Huge Storage Unit Enhanced Optical Array Improved Signal Interpreter Encrypted Comm Array Weapon Cycler Reactive Plating High-powered Tractor Beam > --- WEAPON ----------- Heavy Plasma Cannon Advanced Assault Cannon > --- INVENTORY -------- Armored Huge Wheel Improved Heat Sink Improved Sensor Array Improved Trap Extractor Improved Lightning Gun Heavy Plasma Cannon Heavy Plasma Cannon Makeshift Shrapnel Gun Mini Grenade Launcher Great Maul [Rating: 59] Favorites ----------- Power Cooled Ion Engine Engine Cooled Ion Engine Power Core Light Fission Core Propulsion Armored Wheel Treads Advanced Treads Leg Aluminum Leg Wheel Armored Wheel Hover Unit Combat Airjet Utility Huge Storage Unit Device Improved Heat Sink Storage Huge Storage Unit Processor Improved Signal Interpreter Hackware Hacking Suite Protection Hardened Heavy Armor Plating Weapon Improved EM Shotgun Energy Gun Improved EM Shotgun Energy Cannon Heavy Plasma Cannon Ballistic Gun Coil Gun Ballistic Cannon Flak Cannon Launcher Mini Grenade Launcher Special Weapon Mining Laser Impact Weapon Great Maul Build | -11 -10 -9 -9 -8 -8 -7 -7 -7 -6 -6 ------- Run | Yrd Mat Mat Sto Mat Gar Fac Low Dat Pro Fac Slots Evolved 8 | . . 2 . 2 . 2 . . . 2 Power 1 | . . . . . . . . . . 1 Propulsion 2 | . . 2 . . . . . . . . Utility 5 | . . . . 2 . 2 . . . 1 Weapon . | . . . . . . . . . . . Parts Attached 275 | . 29 36 22 9 42 48 10 . 24 55 Power 17 | . 3 2 3 . 1 2 . . 1 5 Engine 12 | . 3 2 3 . 1 2 . . 1 . Core 5 | . . . . . . . . . . 5 Reactor . | . . . . . . . . . . . Propulsion 44 | . 8 8 6 3 5 6 . . 3 5 Treads 26 | . 4 5 5 2 3 4 . . 2 1 Leg 3 | . 1 . . . . . . . . 2 Wheel 14 | . 3 3 1 1 2 2 . . 1 1 Hover 1 | . . . . . . . . . . 1 Flight . | . . . . . . . . . . . Utility 97 | . 5 9 1 6 8 24 5 . 16 23 Device 60 | . 2 2 . 4 4 17 5 . 14 12 Storage 7 | . 3 2 . . . 1 . . . 1 Processor 6 | . . 1 . . . 1 . . . 4 Hackware 6 | . . 1 . 1 . 1 . . . 3 Protection 18 | . . 3 1 1 4 4 . . 2 3 Artifact . | . . . . . . . . . . . Weapon 117 | . 13 17 12 . 28 16 5 . 4 22 Energy Gun 37 | . 8 6 7 . 7 5 . . . 4 Energy Cannon 17 | . 5 2 . . 3 3 2 . . 2 Ballistic Gun 6 | . . . . . 3 . . . 1 2 Ballistic Cannon 25 | . . 6 1 . 7 3 1 . 2 5 Launcher 17 | . . 2 . . 1 5 2 . 1 6 Special Weapon 3 | . . 1 2 . . . . . . . Impact Weapon 12 | . . . 2 . 7 . . . . 3 Slashing Weapon . | . . . . . . . . . . . Piercing Weapon . | . . . . . . . . . . . Special Melee Weapon . | . . . . . . . . . . . Unidentified Prototypes 9 | . 1 3 2 . . 2 . . . 1 Corrupted Parts 2 | . . . . . . 1 . . . 1 System Corruption 11 | . . . . . . 1 . . . 10 Parts Lost 62 | . 4 3 . . 11 6 . . 8 30 Power 7 | . . . . . . 1 . . 2 4 Propulsion 18 | . 1 1 . . 5 1 . . 3 7 Utility 19 | . . . . . 3 3 . . 3 10 Weapon 18 | . 3 2 . . 3 1 . . . 9 Highest Loss Streak 8 | . 3 1 . . 3 2 . . 2 8 To Critical Strikes . | . . . . . . . . . . . Average Slot Usage (%) 92 | . 96 99 99 99 99 90 84 84 88 64 Engine 8 | . 14 11 11 9 9 7 7 7 4 . Treads 16 | . 12 22 22 18 17 15 15 15 15 4 Wheel 13 | . 12 21 22 18 17 9 7 7 7 3 Device 12 | . 10 4 . 11 10 22 15 15 21 12 Storage 8 | . 13 10 11 9 9 7 7 7 7 4 Processor 3 | . . . . . . 3 7 7 7 9 Hackware 1 | . . . . 6 7 . . . . 2 Protection 6 | . . 6 10 9 8 6 7 7 7 5 Energy Gun 7 | . 17 7 10 18 6 6 7 7 1 1 Energy Cannon 3 | . 10 3 . . 1 4 3 7 5 . Ballistic Cannon 5 | . . 9 6 . 6 1 2 . 6 2 Naked Turns 10 | . . . . . . . . . . 10 Heaviest Build 132 | 11 94 103 101 106 120 132 126 126 130 125 Greatest Support 46 | 20 20 24 46 24 44 28 28 28 28 28 Greatest Overweight (x) 8 | . 8 8 4 8 4 5 4 4 4 4 Average Overweight (x) 3 | . 4 3 3 4 3 3 4 4 3 1 Largest Inventory Capacity 25 | . 25 25 25 25 25 25 25 25 25 25 Average Capacity 24 | . 21 24 25 25 25 25 25 25 25 18 Most Carried 25 | . 25 25 25 25 25 25 25 25 25 21 Average Carried 21 | . 16 22 24 23 22 24 24 25 22 11 Final Capacity 25 | 8 25 25 25 25 25 25 25 25 25 10 Final Carried 25 | 6 19 25 25 25 25 25 25 25 21 4 Class Distribution -------------------- 92% | Mutant 6% | Scavenger-Mutant Dominant Class ---------------- Mutant | -10/Materials Mutant | -9/Materials Mutant | -9/Storage Mutant | -8/Materials Mutant | -8/Garrison Mutant | -7/Factory Mutant | -7/Lower Caves Mutant | -7/Data Miner Mutant | -6/Proximity Caves Mutant | -6/Factory Resources | -11 -10 -9 -9 -8 -8 -7 -7 -7 -6 -6 ----------- Run | Yrd Mat Mat Sto Mat Gar Fac Low Dat Pro Fac Matter Collected 5298 | 200 279 886 524 90 854 782 214 . 369 1100 Remotely 1260 | . . . . . . 477 63 . . 720 Salvage Created 8382 | . 705 2064 582 203 1483 1678 179 . 521 967 Parts 420 | . 41 135 30 11 66 75 15 . 22 25 Haulers Intercepted 15 | . 2 6 4 . . 2 . . . 1 Recyclers Shooed 3 | . . 2 . . . 1 . . . . Parts Field Recycled . | . . . . . . . . . . . Retrieved Matter . | . . . . . . . . . . . Parts Self-Destructed 34 | . . . . . . . 13 . 21 . Prevented . | . . . . . . . . . . . Kills | -11 -10 -9 -9 -8 -8 -7 -7 -7 -6 -6 ------- Run | Yrd Mat Mat Sto Mat Gar Fac Low Dat Pro Fac Combat Hostiles Destroyed 174 | . 7 48 5 5 30 36 8 . 12 23 Melee 1 | . . . . . . . . . . 1 Guns 50 | . 6 9 1 5 15 5 . . 3 6 Cannons 58 | . . 32 2 . 9 4 . . 7 4 AOE 53 | . 1 7 2 . 2 22 7 . 2 10 Classes Destroyed 18 | . 8 6 . . 2 . 1 . 1 . Worker 6 | . . 3 1 1 . 1 . . . . Builder 10 | . 1 1 . . . 5 . . . 3 Tunneler 5 | . 2 2 . . . 1 . . . . Hauler 15 | . 2 6 4 . . 2 . . . 1 Recycler 9 | . 3 2 2 . . 1 . . . 1 Minesweeper 1 | . . . . . . . . . 1 . Mechanic 4 | . . 1 1 . . 1 . . . 1 Operator 6 | . 1 4 1 . . . . . . . Watcher 13 | . 3 5 . 1 1 1 . . . 2 Swarmer 26 | . 3 7 . 4 . . 7 . 3 2 Grunt 106 | . 4 28 2 . 20 30 . . 2 20 Brawler 4 | . . 1 . . 1 . . . 1 1 Duelist 5 | . . 2 1 . 1 1 . . . . Protector 1 | . . 1 . . . . . . . . Sentry 22 | . . 9 2 1 5 4 . . 1 . Hunter 4 | . . . . . 2 . . . 2 . Programmer 4 | . . . . . 1 1 . . 2 . Behemoth 2 | . . . . . . . 1 . 1 . Best Kill Streak 15 | . 4 6 3 4 5 8 4 . 3 15 Combat Bots Only 8 | . 2 5 2 4 4 7 4 . 3 8 Max Kills in Single Turn 4 | . 2 4 2 1 2 4 3 . 2 2 Gunslinging 1 | . . 1 . . . . . . . . Exploded 4 | . 1 2 1 . 1 4 3 . 2 1 Melee 1 | . . . . . . . . . . 1 Uniques/NPCs Destroyed . | . . . . . . . . . . . Combat | -11 -10 -9 -9 -8 -8 -7 -7 -7 -6 -6 -------- Run | Yrd Mat Mat Sto Mat Gar Fac Low Dat Pro Fac Hostile Shots Fired 1491 | . 51 166 30 36 184 277 40 . 216 491 Missed 490 | . 8 45 7 9 46 88 12 . 89 186 Damage Taken 13619 | . 690 1805 385 257 2255 2158 330 . 1311 4428 Core 1895 | . 124 353 38 21 201 182 12 . 102 862 Absorbed by Shields 758 | . . . . 60 146 68 . . 220 264 Ignored by Resistances 416 | . . . . . 20 172 . . 116 108 Regen/Repaired (Parts) 399 | . . 399 . . . . . . . . Core Remaining (%) 53 | 100 50 . 2 . 59 . . . 57 . Volleys Fired 571 | . 41 136 29 9 109 95 13 . 55 84 Largest 2 | . 2 2 2 2 2 2 1 . 2 2 Hottest 180 | . 136 136 100 90 180 180 90 . 150 138 Shots Fired 976 | . 77 262 49 18 194 160 13 . 91 112 Gun 439 | . 71 72 23 18 123 71 . . 11 50 Cannon 457 | . 6 184 18 . 67 57 8 . 76 41 Launcher 69 | . . 3 . . 4 32 5 . 4 21 Special 11 | . . 3 8 . . . . . . . Kinetic 333 | . . 127 18 . 95 10 . . 42 41 Thermal 270 | . 22 74 8 . 16 60 8 . 45 37 Explosive 69 | . . 3 . . 4 32 5 . 4 21 Electromagnetic 304 | . 55 58 23 18 79 58 . . . 13 Robot Hit Streak 23 | . 17 9 8 7 23 12 4 . 10 11 Robot Miss Streak 7 | . 3 6 3 3 7 3 1 . 5 2 Penetration Max 2 | . . . . . 2 . . . . . Secondary Targets 5 | . 1 1 1 2 . . . . . . Max Gunslinging Chain 1 | . 1 1 1 1 . . . . . . Shots Hit Robots 650 | . 54 174 30 15 131 110 5 . 51 80 Core Hits 534 | . 28 157 26 10 87 103 9 . 27 87 Critical Kills 3 | . . . . . 1 . 1 . . 1 Critical Parts Destroyed 3 | . . . . . . . . . . 3 Critical Strikes 16 | . 2 2 . . 1 1 1 . 2 7 Burn 5 | . 1 . . . . 1 . . 1 2 Meltdown 1 | . . . . . . . 1 . . . Destroy 1 | . . . . . 1 . . . . . Blast 4 | . . 2 . . . . . . 1 1 Corrupt 1 | . 1 . . . . . . . . . Smash 4 | . . . . . . . . . . 4 Melee Attacks 29 | . . . 4 . 15 . . . . 10 Impact 29 | . . . 4 . 15 . . . . 10 Slashing . | . . . . . . . . . . . Piercing . | . . . . . . . . . . . Sneak Attacks 1 | . . . . . . . . . . 1 Combat Hostiles . | . . . . . . . . . . . Follow-up Attacks . | . . . . . . . . . . . Damage Inflicted 22326 | . 885 4531 895 228 3112 5513 534 . 1745 4883 Guns 6557 | . 662 839 320 228 1881 1284 . . 284 1059 Cannons 6906 | . 101 2667 266 . 821 978 105 . 1334 634 Explosions 8388 | . 98 1005 298 . 362 3251 429 . 127 2818 Melee 372 | . . . . . . . . . . 372 Ramming 103 | . 24 20 11 . 48 . . . . . Kinetic 4948 | . . 1860 266 . 1269 83 . . 749 721 Thermal 5888 | . 352 1427 298 . 478 1516 105 . 869 843 Explosive 6948 | . . 444 . . 205 3006 429 . 127 2737 Electromagnetic 4067 | . 509 780 320 228 1112 908 . . . 210 Impact 372 | . . . . . . . . . . 372 Slashing . | . . . . . . . . . . . Piercing . | . . . . . . . . . . . Highest Corruption 10 | . 1 1 2 . 5 1 . . 2 10 Average Corruption 2 | . 1 1 1 . 3 1 . . 1 10 Corruption Purged 1 | . . . . . . 1 . . . . Corruption Blocked . | . . . . . . . . . . . Effects 84 | . 6 3 21 . 11 . . . 22 21 Message Errors 31 | . 3 1 8 . 5 . . . 6 8 Matter Fused 16 | . 2 . 3 . 2 . . . 5 4 Heat Flow Errors 8 | . . 1 2 . 1 . . . 3 1 Energy Discharges 6 | . . . 2 . . . . . 3 1 Parts Rejected 1 | . . . . . . . . . . 1 Data Loss (minor) 10 | . 1 1 2 . 1 . . . 2 3 Data Loss (major) 3 | . . . 1 . . . . . 1 1 Misfires 3 | . . . 1 . 2 . . . . . Alerts 2 | . . . 1 . . . . . 1 . Misdirections 1 | . . . . . . . . . . 1 Weapon Failures 3 | . . . 1 . . . . . 1 1 Overload Shots 35 | . . . . . . 13 . . 8 14 Effects 2 | . . . . . . 1 . . . 1 Energy Bleed 1 | . . . . . . . . . . 1 Heat Surge 1 | . . . . . . 1 . . . . Overflow Damage 364 | . 15 43 9 . 4 76 28 . 22 167 Projectiles 117 | . . 24 6 . 4 61 . . 22 . Explosions 84 | . 15 19 3 . . 15 28 . . 4 Melee 163 | . . . . . . . . . . 163 Knockbacks 45 | . 1 25 2 . 8 . . . . 9 Impact 5 | . 1 . . . . . . . . 4 Kinetic 38 | . . 24 2 . 8 . . . . 4 Secondary 2 | . . 1 . . . . . . . 1 Self-Inflicted Damage 812 | . 168 304 82 . 143 114 . . . 1 Shots 21 | . 4 7 3 . 3 3 . . . 1 Rammed 8 | . 3 3 1 . 1 . . . . . Targets Rammed 8 | . 3 3 1 . 1 . . . . . Kicked . | . . . . . . . . . . . Crushed . | . . . . . . . . . . . Highest Temperature 434 | . 274 377 181 105 312 434 146 . 236 317 Average Temperature 75 | . 76 59 30 38 100 70 48 . 75 112 Received Heat Transfer 5396 | . 135 618 198 80 1135 1063 12 . 164 1991 Effects 6 | . 1 1 . . 3 1 . . . . Shutdowns 1 | . . 1 . . . . . . . . Energy Bleed 1 | . . . . . . 1 . . . . Interference 4 | . 1 . . . 3 . . . . . Siege Activations . | . . . . . . . . . . . Robots Corrupted 8 | . . . . . 4 4 . . . . Combat Hostiles 8 | . . . . . 4 4 . . . . Parts Fried 25 | . 5 3 . 3 5 6 . . . 3 Impact Corruptions 6 | . . . . . . . . . . 6 Robots Melted 3 | . . . . . . 1 1 . . 1 Combat Hostiles 3 | . . . . . . 1 1 . . 1 Parts Melted 21 | . 4 1 . . 1 7 1 . 5 2 Heat Transferred 9078 | . 756 2230 400 . 500 2250 150 . 1350 1442 Parts Sabotaged . | . . . . . . . . . . . Parts Stolen . | . . . . . . . . . . . Parts Stripped . | . . . . . . . . . . . Power Chain Reactions 18 | . 3 6 4 . 2 2 . . . 1 Alert | -11 -10 -9 -9 -8 -8 -7 -7 -7 -6 -6 ------- Run | Yrd Mat Mat Sto Mat Gar Fac Low Dat Pro Fac Peak Influence 1625 | . 165 852 1084 462 1537 1625 . . . 642 Initial 806 | . . 24 293 455 182 806 . . . 37 Average 547 | . 66 517 353 353 842 1152 . . . 404 Maximum Alert Level 5 | . . 3 3 2 4 5 . . . 2 Low Security (%) 23 | . 100 4 35 . 5 . . . . 16 Level 1 18 | . . 20 46 51 14 . . . . 14 Level 2 28 | . . 53 4 48 22 . . . . 68 Level 3 18 | . . 22 12 . 21 57 . . . . Level 4 9 | . . . . . 36 26 . . . . Level 5 2 | . . . . . . 16 . . . . High Security . | . . . . . . . . . . . Max Security . | . . . . . . . . . . . Squads Dispatched 47 | . 2 10 7 2 . 11 . . . 15 Investigation 19 | . 1 5 2 1 . 3 . . . 7 Extermination 1 | . . . . . . 1 . . . . Reinforcement 18 | . 1 4 3 . . 5 . . . 5 Assault 5 | . . 1 2 . . 1 . . . 1 Garrison 4 | . . . . 1 . 1 . . . 2 Intercept . | . . . . . . . . . . . Searches Triggered . | . . . . . . . . . . . Data Miner Redirects 3 | . . . . . . . . . . 3 Construction Impeded 3 | . . . . . . 1 . . . 2 Haulers Reinforced 4 | . . . . . . 3 . . . 1 Active Scanning Responses . | . . . . . . . . . . . Cargo Convoy Interrupts . | . . . . . . . . . . . Stealth | -11 -10 -9 -9 -8 -8 -7 -7 -7 -6 -6 --------- Run | Yrd Mat Mat Sto Mat Gar Fac Low Dat Pro Fac Distress Signals 10 | . . 5 2 . . . . . . 3 Communications Jammed . | . . . . . . . . . . . Distress Signals . | . . . . . . . . . . . Times Spotted 273 | . 11 70 28 6 41 40 9 . 15 53 Peak Tracking Total 9 | . 3 5 4 4 5 6 4 . 3 9 Tactical Retreats 22 | . . 4 3 . 5 . 1 . 3 6 Traps | -11 -10 -9 -9 -8 -8 -7 -7 -7 -6 -6 ------- Run | Yrd Mat Mat Sto Mat Gar Fac Low Dat Pro Fac Traps Triggered 14 | . 7 1 2 . 3 1 . . . . Indirectly . | . . . . . . . . . . . Trap Hack Attempts . | . . . . . . . . . . . Triggered . | . . . . . . . . . . . Disarmed . | . . . . . . . . . . . Reprogrammed . | . . . . . . . . . . . Reused 2 | . . . . . . . . . 2 . Traps Extracted 6 | . . . . . . . . . 6 . Installed 6 | . . . . . . . . . 6 . Triggered 2 | . . . . . . . . . 2 . Most Traps Carried 5 | . . . . . . . . . 5 3 Machines | -11 -10 -9 -9 -8 -8 -7 -7 -7 -6 -6 ---------- Run | Yrd Mat Mat Sto Mat Gar Fac Low Dat Pro Fac Machines Disabled 39 | . 3 4 9 . 12 9 . . . 2 Max in Single Turn 3 | . 1 1 1 . 2 3 . . . 1 Garrison Access 2 | . . . 1 . . . . . . 1 Garrison Relay 6 | . . . . . 6 . . . . . Phase Generator 1 | . . . . . 1 . . . . . Machines Repaired . | . . . . . . . . . . . Machines Dismantled . | . . . . . . . . . . . Machines Sabotaged . | . . . . . . . . . . . Overloaded Fab Kills . | . . . . . . . . . . . Hacking | -11 -10 -9 -9 -8 -8 -7 -7 -7 -6 -6 --------- Run | Yrd Mat Mat Sto Mat Gar Fac Low Dat Pro Fac Machines Accessed 61 | . 10 14 6 6 4 10 . 4 . 7 Terminals 34 | . 7 8 4 2 4 5 . . . 4 Fabricators 4 | . . . . . . 2 . . . 2 Repair Stations 4 | . 1 2 . 1 . . . . . . Recycling Units 9 | . 2 2 2 2 . 1 . . . . Scanalyzers 3 | . . 2 . . . 1 . . . . Garrison Access 3 | . . . . 1 . 1 . . . 1 Total Hacks 197 | . 27 49 17 23 9 26 . 29 . 17 Successful 109 | . 14 24 9 12 3 15 . 29 . 3 Failed 85 | . 12 24 8 10 6 11 . . . 14 Catastrophic 29 | . 2 8 5 1 3 3 . . . 7 Database Lockouts 3 | . 1 1 . 1 . . . . . . Manual 95 | . 19 31 11 14 4 10 . . . 6 Terminals 97 | . 19 28 13 9 9 10 . . . 9 Fabricators 12 | . . . . . . 6 . . . 6 Repair Stations 13 | . 2 6 . 5 . . . . . . Recycling Units 27 | . 6 8 4 7 . 2 . . . . Scanalyzers 14 | . . 7 . . . 7 . . . . Garrison Access 5 | . . . . 2 . 1 . . . 2 Terminal Hacks 55 | . 5 9 4 3 3 2 . 29 . . Record 11 | . . . . . . . . 11 . . Part Schematic 13 | . . 1 1 1 . . . 10 . . Robot Schematic 5 | . . . . . . . . 5 . . Robot Analysis 3 | . 3 . . . . . . . . . Prototype ID Bank 4 | . 1 . . . . . . 3 . . Branch Access Points 1 | . . . . . . 1 . . . . Terminal Index 2 | . . 1 1 . . . . . . . Fabricator Index 1 | . . . . . . 1 . . . . Alert Level 3 | . . 1 1 1 . . . . . . Unreport Threat 4 | . . 3 . 1 . . . . . . Locate Traps 2 | . . 2 . . . . . . . . Recall Reinforcements 1 | . 1 . . . . . . . . . Zone Layout 2 | . . 1 1 . . . . . . . Garrison Registry 1 | . . . . . 1 . . . . . Patrol Navigation 1 | . . . . . 1 . . . . . Security Stations 1 | . . . . . 1 . . . . . Fabricator Hacks 6 | . . . . . . 4 . . . 2 Load Schematic 3 | . . . . . . 2 . . . 1 Build 3 | . . . . . . 2 . . . 1 Repair Station Hacks 6 | . 2 3 . 1 . . . . . . Scan Component 4 | . 1 2 . 1 . . . . . . Repair 2 | . 1 1 . . . . . . . . Recycling Unit Hacks 10 | . 3 1 3 2 . 1 . . . . Report Inventory 8 | . 2 1 2 2 . 1 . . . . Retrieve Components 2 | . 1 . 1 . . . . . . . Scanalyzer 12 | . . 5 . . . 7 . . . . Insert Component 7 | . . 3 . . . 4 . . . . Analyze 5 | . . 2 . . . 3 . . . . Garrison Access Hacks 1 | . . . . 1 . . . . . . Unlock Access 1 | . . . . 1 . . . . . . Unauthorized Hacks 19 | . 4 6 2 5 . 1 . . . 1 Terminals 9 | . 2 3 2 1 . 1 . . . . Botnet 8 | . 2 2 2 1 . 1 . . . . Operators 1 | . . 1 . . . . . . . . Fabricators 1 | . . . . . . . . . . 1 Liberate 1 | . . . . . . . . . . 1 Repair Stations . | . . . . . . . . . . . Recycling Units 8 | . 2 3 . 3 . . . . . . Reject 2 | . . 1 . 1 . . . . . . Recyclers 3 | . 1 1 . 1 . . . . . . Mask 2 | . . 1 . 1 . . . . . . Tunnel 1 | . 1 . . . . . . . . . Scanalyzers . | . . . . . . . . . . . Garrison Access 1 | . . . . 1 . . . . . . Reprogram 1 | . . . . 1 . . . . . . Data Cores Recovered . | . . . . . . . . . . . Used . | . . . . . . . . . . . Hacking Detections 52 | . 7 14 5 5 4 10 . . . 7 Full Trace Events 22 | . 2 7 3 . 1 3 . . . 6 Feedback Events . | . . . . . . . . . . . Feedback Blocked . | . . . . . . . . . . . Robot Schematics Acquired 5 | . . . . . . . . 5 . . Robots Built . | . . . . . . . . . . . Authchips . | . . . . . . . . . . . Time . | . . . . . . . . . . . Total Robot Build Rating . | . . . . . . . . . . . Part Schematics Acquired 17 | . . 3 1 1 . 2 . 10 . . Parts Built 2 | . . . . . . 2 . . . . Authchips . | . . . . . . . . . . . Time 188 | . . . . . . 104 . . . 84 Total Part Build Rating 4 | . . . . . . 4 . . . . Parts Repaired 1 | . . 1 . . . . . . . . Time 52 | . 26 26 . . . . . . . . Parts Recycled . | . . . . . . . . . . . Recycled Matter . | . . . . . . . . . . . Retrieved Matter . | . . . . . . . . . . . Retrieved Components 5 | . 3 . 2 . . . . . . . Parts Scanalyzed 5 | . . 2 . . . 3 . . . . Part Schematics Acquired 4 | . . 2 . . . 2 . . . . Parts Damaged 1 | . . . . . . 1 . . . . Bothacking | -11 -10 -9 -9 -8 -8 -7 -7 -7 -6 -6 ------------ Run | Yrd Mat Mat Sto Mat Gar Fac Low Dat Pro Fac Used RIF Installer . | . . . . . . . . . . . Robots Hacked . | . . . . . . . . . . . Non-combat . | . . . . . . . . . . . Combat . | . . . . . . . . . . . Robot Hacks Applied . | . . . . . . . . . . . Relay Couplers Released 28 | . . . 2 . 24 . . . . 2 Machine Destruction 28 | . . . 2 . 24 . . . . 2 Fabnet Peak Effective % . | . . . . . . . . . . . Robots Rewired 10 | . . . . . 10 . . . . . Allies Hacked . | . . . . . . . . . . . Hacks Repelled . | . . . . . . . . . . . Allies | -11 -10 -9 -9 -8 -8 -7 -7 -7 -6 -6 -------- Run | Yrd Mat Mat Sto Mat Gar Fac Low Dat Pro Fac Total Allies 15 | . . . 1 1 10 . . . . 3 Largest Group 10 | . . . 1 1 10 . . . . 3 Highest-Rated Group 186 | . . . 100 95 186 . . . . 87 Highest-Rated Ally 100 | . . . 100 95 25 . . . . 29 Total Orders 4 | . . . . . 4 . . . . . ROAM 2 | . . . . . 2 . . . . . FOLLOW 2 | . . . . . 2 . . . . . Ally Attacks 123 | . . . 53 . 48 . . . . 22 Total Damage 3331 | . . . 2113 . 842 . . . . 376 Kills 31 | . . . 24 . 5 . . . . 2 Allies Corrupted . | . . . . . . . . . . . Allies Melted 1 | . . . . . 1 . . . . . Intel | -11 -10 -9 -9 -8 -8 -7 -7 -7 -6 -6 ------- Run | Yrd Mat Mat Sto Mat Gar Fac Low Dat Pro Fac Robot Analysis Total 3 | . 3 . . . . . . . . . Derelict Logs Recovered 3 | . . . . . . . 1 . 2 . Drone Launches . | . . . . . . . . . . . Drone Recoveries . | . . . . . . . . . . . Exploration | -11 -10 -9 -9 -8 -8 -7 -7 -7 -6 -6 ------------- Run | Yrd Mat Mat Sto Mat Gar Fac Low Dat Pro Fac Turns Passed 15063 | . 1554 2909 1230 634 1777 1296 2050 226 2560 827 Spaces Moved 7144 | 1 787 1442 440 357 793 586 842 141 1336 419 Core 170 | . . . . . . . . . . 170 Treads 23 | . 21 . 1 . 1 . . . . . Legs 70 | 1 69 . . . . . . . . . Wheels 6821 | . 697 1442 439 357 792 586 842 141 1336 189 Hover 60 | . . . . . . . . . . 60 Flight . | . . . . . . . . . . . Fastest Speed 50 | 120 80 90 135 150 150 145 160 160 145 50 Average Speed 151 | 120 163 146 149 153 150 156 160 160 156 114 Slowest Speed 320 | 120 240 210 320 210 305 165 160 160 160 160 Overloaded Moves . | . . . . . . . . . . . Propulsion Burnouts . | . . . . . . . . . . . Robots Hopped . | . . . . . . . . . . . Cave-ins Triggered . | . . . . . . . . . . . Exploration Rate (%) 61 | 2 92 96 74 24 89 18 88 75 97 18 Regions Visited 10 Branch Regions 4 Pre-discovered Areas 3 | . 1 . . . . . 1 1 . . Known Exits Taken 7 | . . 1 1 1 . 1 1 1 1 . Unknown Exits Taken 2 | 1 1 . . . . . . . . . Scrap Searched 7 | . . . . . . . 2 . 5 . Spaces Dug 37 | . . 3 4 . 3 11 2 . 9 5 Terrain Destroyed 599 | . 28 88 18 . 117 169 36 . 40 103 Melee 5 | . . . . . 3 . . . . 2 Projectile 73 | . . 7 4 . 7 16 4 . 22 13 AOE 521 | . 28 81 14 . 107 153 32 . 18 88 Terrain Rammed 1 | . . . . . 1 . . . . . Walls Destroyed . | . . . . . . . . . . . Machines Disabled . | . . . . . . . . . . . Actions | -11 -10 -9 -9 -8 -8 -7 -7 -7 -6 -6 --------- Run | Yrd Mat Mat Sto Mat Gar Fac Low Dat Pro Fac Total 10295 | . 974 1986 943 430 1145 811 1528 142 1712 624 Wait 1858 | . 52 253 412 30 90 27 662 2 285 45 Move 7135 | . 786 1441 440 356 792 585 841 140 1335 419 Hop . | . . . . . . . . . . . Pick Up 173 | . 38 71 8 10 16 18 1 . 6 5 Fast Attach 71 | . 14 11 10 3 4 10 . . . 19 Attach 66 | . 5 8 . 3 12 13 . . 8 17 Detach 35 | . 6 7 1 3 4 11 . . . 3 Swap 138 | . 10 17 12 3 26 25 10 . 16 19 Drop 134 | . 19 39 23 13 8 27 1 . 1 3 Fire 571 | . 41 136 29 9 109 95 13 . 55 84 Melee 29 | . . . 4 . 15 . . . . 10 Ram 7 | . 3 3 . . 1 . . . . . Kick . | . . . . . . . . . . . Crush 1 | . . . . . 1 . . . . . Escape Stasis 16 | . . . 4 . 12 . . . . . Rewire 55 | . . . . . 55 . . . . . Trap 6 | . . . . . . . . . 6 . Miscellaneous . | . . . . . . . . . . . Route ------- -11/Scrapyard -10/Materials (discovered 6 exits: *Mat x3 / [*Min x2] / [*Sub]) -9/Materials (discovered 7 exits: *Mat x3 / *Min x2 / *Sto x2) -9/Storage -8/Materials -8/Garrison (discovered 3 exits: *Fac x3) -7/Factory (discovered 2 exits: *Low x2) -7/Lower Caves (discovered 2 exits: *Low / *Dat) -7/Data Miner -6/Proximity Caves -6/Factory History --------- Turn | Location | Event 1 | -11/Scrapyard | Discovered new exit (range 0) 1 | -11/Scrapyard | Entered Materials 303 | -10/Materials | Build established: Mutant 311 | -10/Materials | Discovered new exit (range 12) 388 | -10/Materials | Discovered new exit (range 16) 719 | -10/Materials | Discovered new exit (range 15) 811 | -10/Materials | Discovered new exit (range 10) 1012 | -10/Materials | Lost 3 parts (1n2w) 1070 | -10/Materials | Discovered new exit (range 12) 1289 | -10/Materials | Discovered new exit (range 14) 1397 | -10/Materials | Central database locked down 1555 | -10/Materials | Entered another Materials area 1555 | -9/Materials | Evolved 2 slots: Propulsion x2 2154 | -9/Materials | Discovered new exit (range 9) 2300 | -9/Materials | Discovered new exit (range 14) 2680 | -9/Materials | Repaired Huge Storage Unit 2755 | -9/Materials | First assault squad dispatched 2807 | -9/Materials | Core integrity fell below 50% 2931 | -9/Materials | Discovered new exit (range 13) 3200 | -9/Materials | Discovered new exit (range 16) 3609 | -9/Materials | Discovered new exit (range 10) 3701 | -9/Materials | Discovered new exit (range 7) 3750 | -9/Materials | Core integrity fell below 20% 3829 | -9/Materials | Discovered new exit (range 16) 4178 | -9/Materials | Central database locked down 4369 | -9/Materials | Identified exit to Mines 4404 | -9/Materials | Identified exit to Materials 4461 | -9/Materials | Identified exit to Storage 4464 | -9/Materials | Entered Storage 5086 | -9/Storage | Met 01-MTF 5315 | -9/Storage | Discovered exit to Materials (range 16) 5664 | -9/Storage | First assault squad dispatched 5694 | -9/Storage | Entered Materials 5694 | -8/Materials | Accompanied by 1 ally (01-MTF) 5694 | -8/Materials | Evolved 2 slots: Utility x2 5699 | -8/Materials | 01-MTF left 5916 | -8/Materials | Central database locked down 6137 | -8/Materials | Identified exit to Garrison 6319 | -8/Materials | Garrison activated, responded to threat 6328 | -8/Materials | Entered Garrison 6328 | -8/Garrison | Accompanied by 1 ally 6396 | -8/Garrison | Triggered checkpoint 6457 | -8/Garrison | Garrison Relay disabled 6483 | -8/Garrison | Discovered new exit (range 52) 6483 | -8/Garrison | Discovered new exit (range 28) 6483 | -8/Garrison | Discovered new exit (range 46) 6596 | -8/Garrison | Triggered checkpoint 6679 | -8/Garrison | Garrison Relay disabled 6748 | -8/Garrison | Triggered checkpoint 6814 | -8/Garrison | Garrison Relay disabled 6826 | -8/Garrison | Learned Factory security intel 6968 | -8/Garrison | Triggered checkpoint 7040 | -8/Garrison | Triggered checkpoint 7116 | -8/Garrison | Lost 3 parts (1n2w) 7149 | -8/Garrison | Garrison Relay disabled 7156 | -8/Garrison | Triggered checkpoint 7166 | -8/Garrison | Garrison Relay disabled 7346 | -8/Garrison | Phase Generator disabled 7622 | -8/Garrison | Triggered checkpoint 7631 | -8/Garrison | Triggered checkpoint 7658 | -8/Garrison | P-60 Hacker assimilated allied Rogue 3d 7680 | -8/Garrison | Lost 8 allies 7961 | -8/Garrison | Garrison Relay disabled 7964 | -8/Garrison | Triggered checkpoint 8105 | -8/Garrison | Entered Factory 8105 | -7/Factory | Evolved 2 slots: Utility x2 8371 | -7/Factory | Garrison activated, responded to threat 8395 | -7/Factory | Build established: Scavenger-Mutant 8411 | -7/Factory | Destroyed 7 combat bots 8929 | -7/Factory | Identified exit to Lower Caves 9049 | -7/Factory | Build established: Mutant 9113 | -7/Factory | Fabricated Arm. Wheel? 9305 | -7/Factory | First assault squad dispatched 9401 | -7/Factory | Entered Lower Caves 9499 | -7/Lower Caves | Met a Warlord Commander 9500 | -7/Lower Caves | Learned location of Warlord (-5) 9501 | -7/Lower Caves | Warlord Commander delivered Encrypted Comm Array 9506 | -7/Lower Caves | Found Encrypted Comm Array 10526 | -7/Lower Caves | Encountered a Warlord checkpoint 10690 | -7/Lower Caves | Spotted B-75 Beast 11031 | -7/Lower Caves | Destroyed B-75 Beast 11087 | -7/Lower Caves | Learned Factory machine intel 11370 | -7/Lower Caves | A Derelict revealed a hidden shortcut to meet someone special 11411 | -7/Lower Caves | Discovered new exit (range 8) 11420 | -7/Lower Caves | Identified exit to Lower Caves 11449 | -7/Lower Caves | Identified exit to Data Miner 11451 | -7/Lower Caves | Entered Data Miner 11451 | -7/Data Miner | Discovered new exit (range 6) 11482 | -7/Data Miner | Met Data Miner 11515 | -7/Data Miner | Learned location of Section 7 (-2) 11515 | -7/Data Miner | Acquired the access code to Warlord's prototype stash 11559 | -7/Data Miner | Received God Mode back door access code from Data Miner 11676 | -7/Data Miner | Identified exit to Proximity Caves 11677 | -7/Data Miner | Entered Proximity Caves 11799 | -6/Proximity Caves | Learned Factory emergency access door positions 13141 | -6/Proximity Caves | Attracted the attention of an 0b10 checkpoint 13258 | -6/Proximity Caves | Spotted B-75 Beast 13644 | -6/Proximity Caves | Destroyed B-75 Beast 13856 | -6/Proximity Caves | Learned Factory security intel 14213 | -6/Proximity Caves | Discovered new exit (range 5) 14219 | -6/Proximity Caves | Identified exit to Factory 14237 | -6/Proximity Caves | Entered Factory 14237 | -6/Factory | Evolved 2 slots: Power x1, Utility x1 14240 | -6/Factory | Loaded intel: 243 machine locations 14321 | -6/Factory | Garrison activated, responded to threat 14407 | -6/Factory | Lost 3 parts (1n1u1w) 14420 | -6/Factory | Destroyed 8 combat bots 14522 | -6/Factory | Garrison activated, responded to threat 14566 | -6/Factory | Lost 6 parts (2p1n2u1w) 14587 | -6/Factory | Spotted B-75 Beast 14593 | -6/Factory | System corruption reached 10% 14643 | -6/Factory | Lost 3 parts (1n1u1w) 14760 | -6/Factory | Lost 8 parts (2p1n3u2w) 14791 | -6/Factory | Incoming investigation squad redirected 14791 | -6/Factory | Core integrity fell below 50% 14791 | -6/Factory | Released all parts (4) 14821 | -6/Factory | Lost 6 parts (2n1u3w) 14832 | -6/Factory | Incoming investigation squad redirected 15018 | -6/Factory | Incoming investigation squad redirected 15054 | -6/Factory | Core integrity fell below 20% 15060 | -6/Factory | Lost 3 allies 15064 | -6/Factory | Destroyed by G-50 Soldier with Heavy Laser Last Messages --------------- 15061_ U-05 Engineer builds a Wall. 15061_ K-01 Serf collects debris. 15062_ K-01 Serf destroyed. 15062_ K-01 Serf collects debris. 15062_ U-05 Engineer lays Concrete. 15063_ R-10 Processor collects Sml. Matter Pod. 15063_ K-01 Serf cleans the Neutrino Reactor. 15063_ Acquired 48 matter. 15063_ Penetrated by Slug. 15063_ U-05 Engineer lays Concrete. 15063_ R-10 Processor collects Unknown Device. 15064_ Neutrino Reactor explodes. 15064_ K-01 Serf destroyed. 15064_ Neutrino Reactor explodes. 15064_ Chain reaction triggered in Corrupted Imp. Ion Engine. 15064_ K-01 Serf destroyed. 15064_ H-66 Slayer destroyed. 15064_ K-01 Serf destroyed. 15064_ U-05 Engineer lays Concrete. Map ----- +----------------------------------------------------+ | ??????????????????????? ????????""????? | | ??????????????????????? ????????""????? | | ??????????????????????? [[ #???????T"????? | | ??????????????"""?"""??? [[ +???????""????? | | ??????????????"""?"""??? [ #???????""????? | | ??????????????"""?"""???? #?????????????? | | ????????????????????????? #?????????????? | | ?????????????????????????? """ #?????????????? | | ??????????????????????????# """ #?????????????? | | ??????????????????????????# k """ #?????????????? | | ??????????????????????????# ##############? | | ??????????????????????????# g """ # #? | | ??????????????????????????#[ """ # """ """ #? | | ??????????????????????##### """ # """ """ ## | | ??????????????????????# # """ """ + | | ??????????????????????# R """ # "" "" ## | | ??????????????????????# """ + "" %" #? | | ??????????????????????# """ # #? | | ?????????????????####?# ^ # %* #? | | ?????????????##### # ## """ # ## | | ?????????????# ; """ # ! ## | | ?????????######;;;;;;;; """ # ## | | ?????????# ; g ==% # """T""" #? | | ?????????# "" " % R[= % ##############? | | ?????????# ""F !;%u%[[[% #?????????????? | | ?????????# """ [=!g@%=[%! #?????????????? | | ?????????# ! ;%==%*% h % #?????????????? | | ?????????######;;;;;;#; R%R! #?????????????? | | ??????????? u ??????????? | | ??????????#######""##;# = ??????? | | ????????????????###?### %= ??????? | | ??????????????????????# t u ??????? | | ??????????????????????# ??????? | | ???????????????""?????# ##############???????? | | ??????????????""S?"""?# #????????????????????? | | ??????????????""??"""?# #????????????????????? | | ??????????????????"""?# #????????????????????? | | ???????????????????""?# #????????????????????" | | ???????????????????""?+ +???????????????????"G | | ??????????????????????# #????????????????????" | | ??????????????????????# #????????????????????? | | ??????????????????????# #????????????????????? | | ??????????????????????t #????????????????????? | | ?????????????????????? ?????????????????????? | | ?"""?????????"""?"""??? ?????????????????????? | | ?"""?????????"""?"""?????????????????????????????? | | ?"""?????????"""?"""?????????????????????????????? | | ?????????????????????????????????????????????????? | | ?????????????????????????????????????????????????? | | ?????????????????????????????????????????????????? | +----------------------------------------------------+ Best States ------------- Heat Dissipation 62 Energy Generation 27 Energy Capacity 290 Matter Stores 300 Matter Capacity 300 Sight Range 22 Robot Scan Range 15 Terrain Scan Density 10 Armor Coverage 825 Resistance: KI 20 Resistance: TH 20 Weapon Cycling 15 Evasion (%) 55 Targeting Accuracy 5 Target Analysis 6 Recoil Reduction 2 Particle Charging 20 Offensive Hacking 12 Defensive Hacking 10 Trap Extractor Capacity 6 Item Schematics ----------------- Arm. Wheel | -9/Materials | Hacked Mni. Grenade Launcher | -9/Materials | Scanalyzed Hacking Suite | -9/Materials | Scanalyzed Imp. Treads | -9/Storage | Hacked Arm. Treads | -8/Materials | Hacked Arm. Huge Wheel | -7/Factory | Scanalyzed Imp. EM Shotgun | -7/Factory | Scanalyzed Combat Drone Bay | -7/Data Miner | Free Lgt. Regenerative Plating | -7/Data Miner | Free Cld. Aerolev Unit | -7/Data Miner | Free Gravity Neutralizer | -7/Data Miner | Free Imp. Heavy Laser | -7/Data Miner | Free Nuclear Pulse Array | -7/Data Miner | Free Imp. Focal Shield | -7/Data Miner | Free Imp. Arc Projector | -7/Data Miner | Free Adv. Signal Interpreter | -7/Data Miner | Free Field Propulsion Array | -7/Data Miner | Free Robot Schematics ------------------ L-41 Fighter | -7/Data Miner | Free C-17 Slicer | -7/Data Miner | Free A-15 Conveyor | -7/Data Miner | Free G-47 Trooper | -7/Data Miner | Free B-60 Warrior | -7/Data Miner | Free Fabricated ------------ Arm. Wheel | x2 | -7/Factory Alien Tech Used ----------------- None Achievements -------------- None Challenges ------------ None Game ------ Seed SkeletonImprinterRedirector Manual? 0 Play Time 03:05:48 Cumulative 100.9 hours Start 2024.04.20 @ 19:40:05 End 2024.04.22 @ 21:36:20 Sessions 6 Manual Loads 0 Difficulty Rogue Special Mode None Game No. 40 Rogue 40 Adventurer 0 Explorer 0 Win Type - Total 4 Types 3/0/0/1/0/0/0/0/0 Lore% 48 Gallery% 61 Achievement% 47 Wizard Run 0 Options --------- Layout 1 ASCII 0 Keyboard 0 Movement Mouse Keybinds 0 Fullscreen 2 Font 24/Crisp Map View 50x35 Zoom Use 0% Tactical HUD 1 Map Filters NONE Filters NONE Steam 1 RUN: 7174dd4f-dba3-4cd3-8659-dc997754b2c2